[Event "*** SCC Grand Prix: Titled Tuesday Blitz"]
[Site "Chess.com"]
[Date "2020.08.04"]
[Round "2"]
[White "PotapovaM"]
[Black "Dedic8"]
[Result "1-0"]
[WhiteElo "2527"]
[BlackElo "2787"]
[TimeControl "180+1"]
[EndTime "14:04:39 PDT"]
[Termination "PotapovaM won by resignation"]

1. d4 {[%clk 0:03:00.9]} 1... Nf6 {[%clk 0:03:00.1]} 2. c4 {[%clk 0:03:00.8]}
2... g6 {[%clk 0:03:00.7]} 3. Nc3 {[%clk 0:03:00.5]} 3... d5 {[%clk 0:03:01.1]}
4. cxd5 {[%clk 0:03:00.9]} 4... Nxd5 {[%clk 0:03:02]} 5. e4 {[%clk 0:03:01.3]}
5... Nxc3 {[%clk 0:03:01.9]} 6. bxc3 {[%clk 0:03:02.2]} 6... Bg7 {[%clk
0:03:02.7]} 7. Nf3 {[%clk 0:03:02.2]} 7... c5 {[%clk 0:03:03.2]} 8. Be3 {[%clk
0:03:02.5]} 8... Qa5 {[%clk 0:03:03.1]} 9. Qd2 {[%clk 0:03:01.6]} 9... O-O
{[%clk 0:03:03.3]} 10. Rc1 {[%clk 0:03:00.5]} 10... Bg4 {[%clk 0:03:02.8]} 11.
Be2 {[%clk 0:02:46.2]} 11... cxd4 {[%clk 0:02:28.3]} 12. cxd4 {[%clk 0:02:45.8]}
12... Qxd2+ {[%clk 0:02:28.7]} 13. Nxd2 {[%clk 0:02:39.9]} 13... Bxe2 {[%clk
0:02:24.9]} 14. Kxe2 {[%clk 0:02:40.8]} 14... e6 {[%clk 0:02:11.5]} 15. Rc7
{[%clk 0:02:30.4]} 15... Nc6 {[%clk 0:02:11.5]} 16. Nb3 {[%clk 0:02:25.7]} 16...
a5 {[%clk 0:02:06.7]} 17. a4 {[%clk 0:02:04.8]} 17... Rfc8 {[%clk 0:01:33.6]}
18. Rxb7 {[%clk 0:01:48.1]} 18... Rab8 {[%clk 0:01:33.5]} 19. Rb5 {[%clk
0:01:41.7]} 19... Na7 {[%clk 0:00:48.5]} 20. Rxb8 {[%clk 0:01:28.4]} 20... Rxb8
{[%clk 0:00:49.4]} 21. Nxa5 {[%clk 0:01:28.7]} 21... Rb4 {[%clk 0:00:46.2]} 22.
d5 {[%clk 0:01:13.9]} 22... Rxa4 {[%clk 0:00:41]} 23. Nc6 {[%clk 0:01:02.1]}
23... Nb5 {[%clk 0:00:35.7]} 24. dxe6 {[%clk 0:00:47.9]} 24... Nc3+ {[%clk
0:00:27]} 25. Kf3 {[%clk 0:00:44.5]} 25... Nxe4 {[%clk 0:00:19.7]} 26. e7 {[%clk
0:00:34.1]} 26... Nf6 {[%clk 0:00:06.7]} 27. Rd1 {[%clk 0:00:34.6]} 27... h5
{[%clk 0:00:04.4]} 28. Rd8+ {[%clk 0:00:32.2]} 28... Kh7 {[%clk 0:00:04.9]} 29.
e8=Q {[%clk 0:00:24.4]} 29... Nxe8 {[%clk 0:00:05]} 30. Rxe8 {[%clk 0:00:25.3]}
30... Rc4 {[%clk 0:00:05.7]} 31. Ne5 {[%clk 0:00:24.6]} 31... Rc7 {[%clk
0:00:04.9]} 32. Nd3 {[%clk 0:00:24.4]} 32... f6 {[%clk 0:00:03.8]} 33. h4 {[%clk
0:00:23.5]} 33... Rd7 {[%clk 0:00:03.3]} 34. Nf4 {[%clk 0:00:23.1]} 34... Rf7
{[%clk 0:00:04.2]} 35. Ne6 {[%clk 0:00:22.6]} 35... Rb7 {[%clk 0:00:05.1]} 36.
Nxg7 {[%clk 0:00:22.2]} 36... Kxg7 {[%clk 0:00:06]} 37. g3 {[%clk 0:00:22.2]}
37... Rb3 {[%clk 0:00:05.8]} 38. Re6 {[%clk 0:00:22]} 38... Kf7 {[%clk
0:00:06.1]} 39. Ra6 {[%clk 0:00:21.4]} 39... Rd3 {[%clk 0:00:06.4]} 40. Ra7+
{[%clk 0:00:21.1]} 40... Ke6 {[%clk 0:00:05.6]} 41. Ra6+ {[%clk 0:00:21.4]}
41... Kf5 {[%clk 0:00:06.1]} 42. Ke2 {[%clk 0:00:20.2]} 42... Rb3 {[%clk
0:00:06]} 43. Ra5+ {[%clk 0:00:20.1]} 43... Ke6 {[%clk 0:00:04.8]} 44. Bd4
{[%clk 0:00:18]} 44... Rb4 {[%clk 0:00:02.6]} 45. Ra6+ {[%clk 0:00:17.1]} 45...
Kf5 {[%clk 0:00:02.1]} 46. Bxf6 {[%clk 0:00:14.8]} 46... Rb3 {[%clk 0:00:02.6]}
47. Bg5 {[%clk 0:00:13.1]} 47... Rb2+ {[%clk 0:00:02.6]} 48. Kf3 {[%clk
0:00:13.3]} 48... Rb3+ {[%clk 0:00:03]} 49. Kg2 {[%clk 0:00:12.9]} 49... Kg4
{[%clk 0:00:03.9]} 50. Ra4+ {[%clk 0:00:12.3]} 50... Kf5 {[%clk 0:00:04.1]} 51.
Rf4+ {[%clk 0:00:12.9]} 51... Ke5 {[%clk 0:00:05]} 52. Rf6 {[%clk 0:00:13]}
52... Rb5 {[%clk 0:00:04.1]} 53. Rxg6 {[%clk 0:00:13.1]} 53... Kf5 {[%clk
0:00:05]} 54. Rf6+ {[%clk 0:00:13.1]} 54... Ke4 {[%clk 0:00:05.9]} 55. Rh6
{[%clk 0:00:12.9]} 55... Ke5 {[%clk 0:00:06.8]} 56. Rxh5 {[%clk 0:00:13.1]}
56... Ke4 {[%clk 0:00:07.7]} 57. Rh8 {[%clk 0:00:12.6]} 57... Kf5 {[%clk
0:00:07.5]} 58. Rf8+ {[%clk 0:00:12.6]} 58... Kg4 {[%clk 0:00:08.4]} 59. Rf4+
{[%clk 0:00:11.8]} 59... Kh5 {[%clk 0:00:08.7]} 60. Be7 {[%clk 0:00:12.1]} 60...
Rb1 {[%clk 0:00:08.4]} 61. g4+ {[%clk 0:00:12.1]} 61... Kg6 {[%clk 0:00:08.8]}
62. h5+ {[%clk 0:00:12.4]} 62... Kh6 {[%clk 0:00:09.7]} 63. Rf6+ {[%clk
0:00:11.9]} 63... Kg7 {[%clk 0:00:10.2]} 64. g5 {[%clk 0:00:11.2]} 64... Rb4
{[%clk 0:00:09.4]} 65. h6+ {[%clk 0:00:11.2]} 65... Kh7 {[%clk 0:00:09.4]} 66.
Rf7+ {[%clk 0:00:11.4]} 66... Kg6 {[%clk 0:00:09.5]} 67. Rg7+ {[%clk 0:00:11.1]}
67... Kf5 {[%clk 0:00:10.1]} 68. h7 {[%clk 0:00:11.2]} 68... Rh4 {[%clk
0:00:10.2]} 69. Bf6 {[%clk 0:00:09.1]} 69... Rh5 {[%clk 0:00:09.6]} 70. Kf3
{[%clk 0:00:08.8]} 70... Rh3+ {[%clk 0:00:09.5]} 71. Ke2 {[%clk 0:00:09]} 71...
Rh5 {[%clk 0:00:10.4]} 72. Rc7 {[%clk 0:00:07.5]} 72... Kg6 {[%clk 0:00:10.5]}
73. h8=Q {[%clk 0:00:07.1]} 73... Rxh8 {[%clk 0:00:10.8]} 74. Bxh8 {[%clk
0:00:08]} 74... Kxg5 {[%clk 0:00:11.7]} 75. Bc3 {[%clk 0:00:07.7]} 75... Kg4
{[%clk 0:00:12.6]} 76. Bd2 {[%clk 0:00:07.8]} 76... Kf5 {[%clk 0:00:13.5]} 77.
Be3 {[%clk 0:00:08.1]} 77... Ke5 {[%clk 0:00:14.4]} 78. Rc5+ {[%clk 0:00:08.2]}
78... Ke4 {[%clk 0:00:14.4]} 79. Rc4+ {[%clk 0:00:07.9]} 79... Ke5 {[%clk
0:00:15.3]} 80. Rd4 {[%clk 0:00:08.3]} 80... Ke6 {[%clk 0:00:15.6]} 81. Kd3
{[%clk 0:00:08.8]} 81... Ke5 {[%clk 0:00:16.5]} 82. f4+ {[%clk 0:00:08.9]} 82...
Ke6 {[%clk 0:00:17.4]} 83. Ke2 {[%clk 0:00:09.4]} 83... Kf5 {[%clk 0:00:18.3]}
84. Kf3 {[%clk 0:00:09.9]} 84... Ke6 {[%clk 0:00:19.2]} 85. Ke4 {[%clk
0:00:10.4]} 85... Kf6 {[%clk 0:00:20.1]} 1-0

[Event "*** SCC Grand Prix: Titled Tuesday Blitz"]
[Site "Chess.com"]
[Date "2020.08.04"]
[Round "2"]
[White "Kavyev_Ruslan"]
[Black "effefe"]
[Result "1-0"]
[WhiteElo "2398"]
[BlackElo "2089"]
[TimeControl "180+1"]
[EndTime "14:04:43 PDT"]
[Termination "Kavyev_Ruslan won on time"]

1. d4 {[%clk 0:03:00.9]} 1... Nf6 {[%clk 0:02:59.6]} 2. Nf3 {[%clk 0:03:01.3]}
2... g6 {[%clk 0:02:59.8]} 3. Bf4 {[%clk 0:03:01.4]} 3... Bg7 {[%clk 0:03:00.1]}
4. e3 {[%clk 0:03:01.9]} 4... O-O {[%clk 0:03:00]} 5. Be2 {[%clk 0:03:02.4]}
5... d6 {[%clk 0:03:00.7]} 6. O-O {[%clk 0:03:01.6]} 6... Nc6 {[%clk 0:03:01.2]}
7. h3 {[%clk 0:02:56.9]} 7... Nd7 {[%clk 0:03:01.2]} 8. Bh2 {[%clk 0:02:55.8]}
8... e5 {[%clk 0:03:01.3]} 9. c3 {[%clk 0:02:56.3]} 9... f5 {[%clk 0:03:01.3]}
10. Re1 {[%clk 0:02:47.3]} 10... g5 {[%clk 0:03:01.5]} 11. dxe5 {[%clk
0:02:44.7]} 11... dxe5 {[%clk 0:03:01.4]} 12. Nbd2 {[%clk 0:02:38.9]} 12... Kh8
{[%clk 0:03:01.6]} 13. Nc4 {[%clk 0:02:32.2]} 13... h6 {[%clk 0:02:58.4]} 14. a4
{[%clk 0:02:31.2]} 14... Qe7 {[%clk 0:02:54.7]} 15. b4 {[%clk 0:02:29.5]} 15...
f4 {[%clk 0:02:43]} 16. exf4 {[%clk 0:02:27.3]} 16... exf4 {[%clk 0:02:42.7]}
17. Qb3 {[%clk 0:02:18.4]} 17... Qf6 {[%clk 0:02:37.7]} 18. Rac1 {[%clk
0:02:17.8]} 18... Nde5 {[%clk 0:02:30.4]} 19. Ncxe5 {[%clk 0:02:13.6]} 19...
Nxe5 {[%clk 0:02:31.3]} 20. Nxe5 {[%clk 0:02:12.5]} 20... Qxe5 {[%clk
0:02:32.2]} 21. Bf3 {[%clk 0:02:00.5]} 21... Qf6 {[%clk 0:02:24.5]} 22. Kh1
{[%clk 0:01:54.7]} 22... c6 {[%clk 0:02:24.1]} 23. Be2 {[%clk 0:01:34.5]} 23...
Be6 {[%clk 0:02:20]} 24. Qc2 {[%clk 0:01:28.2]} 24... Bf5 {[%clk 0:02:10.8]} 25.
Qb3 {[%clk 0:01:28.3]} 25... Rad8 {[%clk 0:02:05]} 26. f3 {[%clk 0:01:27.4]}
26... Rd2 {[%clk 0:01:55.3]} 27. Bg1 {[%clk 0:01:27.4]} 27... Re8 {[%clk
0:01:22.1]} 28. Bd4 {[%clk 0:01:23.1]} 28... Qg6 {[%clk 0:01:21.8]} 29. Bxg7+
{[%clk 0:01:19.3]} 29... Qxg7 {[%clk 0:01:22.7]} 30. Bf1 {[%clk 0:01:18.8]}
30... Red8 {[%clk 0:01:14]} 31. b5 {[%clk 0:01:16.3]} 31... Bd3 {[%clk
0:01:01.8]} 32. bxc6 {[%clk 0:01:14.2]} 32... bxc6 {[%clk 0:01:00.3]} 33. Qe6
{[%clk 0:01:08.3]} 33... Bxf1 {[%clk 0:00:58.6]} 34. Rxf1 {[%clk 0:01:09.2]}
34... R8d6 {[%clk 0:00:47.1]} 35. Qe8+ {[%clk 0:01:08.8]} 35... Qg8 {[%clk
0:00:37.1]} 36. Qe5+ {[%clk 0:01:07.5]} 36... Kh7 {[%clk 0:00:34.4]} 37. Rfe1
{[%clk 0:01:06]} 37... Rd7 {[%clk 0:00:20.5]} 38. Qf5+ {[%clk 0:01:05.4]} 38...
Qg6 {[%clk 0:00:18.6]} 39. Qf8 {[%clk 0:01:05.2]} 39... Qg7 {[%clk 0:00:17.8]}
40. Qc5 {[%clk 0:01:04]} 40... R2d6 {[%clk 0:00:15.7]} 41. a5 {[%clk 0:01:02.2]}
41... Qg6 {[%clk 0:00:15]} 42. a6 {[%clk 0:01:01]} 42... Qd3 {[%clk 0:00:14.6]}
43. Kh2 {[%clk 0:00:51.5]} 43... Qd5 {[%clk 0:00:13.1]} 44. Qb4 {[%clk
0:00:48.3]} 44... Kg7 {[%clk 0:00:11.1]} 45. Re8 {[%clk 0:00:45.6]} 45... Re6
{[%clk 0:00:08]} 46. Re1 {[%clk 0:00:41.9]} 46... Rxe1 {[%clk 0:00:07.1]} 47.
Rxe1 {[%clk 0:00:41.9]} 47... c5 {[%clk 0:00:07.7]} 48. Qb5 {[%clk 0:00:34]}
48... c4 {[%clk 0:00:05.8]} 49. Qb4 {[%clk 0:00:22.3]} 49... Kg6 {[%clk
0:00:05.1]} 50. Qf8 {[%clk 0:00:21]} 50... Qd6 {[%clk 0:00:04.7]} 51. Qg8+
{[%clk 0:00:19.4]} 51... Kf6 {[%clk 0:00:05.3]} 52. Qh8+ {[%clk 0:00:18.3]}
52... Kg6 {[%clk 0:00:05.3]} 53. Re8 {[%clk 0:00:18.7]} 53... Rg7 {[%clk
0:00:03.3]} 54. Ra8 {[%clk 0:00:17.2]} 54... Qxa6 {[%clk 0:00:02.7]} 55. Qe8+
{[%clk 0:00:17.4]} 55... Kh7 {[%clk 0:00:02.4]} 56. Rd8 {[%clk 0:00:15.3]} 56...
Qf6 {[%clk 0:00:02.7]} 57. Qh8+ {[%clk 0:00:14.6]} 57... Kg6 {[%clk 0:00:02.9]}
58. Qe8+ {[%clk 0:00:15.2]} 58... Kh7 {[%clk 0:00:02.9]} 59. Qe4+ {[%clk
0:00:15.3]} 59... Qg6 {[%clk 0:00:03.1]} 60. Qxc4 {[%clk 0:00:15.6]} 60... Qf6
{[%clk 0:00:03.6]} 61. Rd4 {[%clk 0:00:14.8]} 61... Kg6 {[%clk 0:00:04.5]} 62.
Re4 {[%clk 0:00:14.7]} 62... Kh5 {[%clk 0:00:04.9]} 63. Re6 {[%clk 0:00:14.8]}
63... Qf5 {[%clk 0:00:05]} 64. Rd6 {[%clk 0:00:13.6]} 64... Rg6 {[%clk
0:00:05.1]} 65. Rd7 {[%clk 0:00:13.3]} 65... Qxd7 {[%clk 0:00:04.4]} 66. Qe4
{[%clk 0:00:13.4]} 66... Qd6 {[%clk 0:00:03.7]} 67. Qe8 {[%clk 0:00:13.5]} 67...
Qe6 {[%clk 0:00:02.9]} 68. Qd8 {[%clk 0:00:12.9]} 68... Qd6 {[%clk 0:00:03]} 69.
Qe8 {[%clk 0:00:13.1]} 69... Qe6 {[%clk 0:00:03]} 70. Qd8 {[%clk 0:00:13.6]}
70... Qf6 {[%clk 0:00:03.4]} 71. Qe8 {[%clk 0:00:13.6]} 71... Kh4 {[%clk
0:00:02.3]} 72. Qe1+ {[%clk 0:00:12.9]} 72... Kh5 {[%clk 0:00:02.1]} 73. Qd1
{[%clk 0:00:12.8]} 73... Rg8 {[%clk 0:00:02]} 74. Qd7 {[%clk 0:00:12.9]} 74...
Rg7 {[%clk 0:00:01.9]} 75. Qg4+ {[%clk 0:00:12.5]} 75... Kg6 {[%clk 0:00:02]}
76. Qc8 {[%clk 0:00:13.2]} 76... Re7 {[%clk 0:00:02.2]} 77. Qg8+ {[%clk
0:00:13.2]} 77... Qg7 {[%clk 0:00:02.6]} 78. Qd5 {[%clk 0:00:13]} 78... h5
{[%clk 0:00:02.9]} 79. Qd3+ {[%clk 0:00:12.7]} 79... Kh6 {[%clk 0:00:02.7]} 80.
Qd6+ {[%clk 0:00:13.3]} 80... Kh7 {[%clk 0:00:02.2]} 81. Qd3+ {[%clk 0:00:13.7]}
81... Kg8 {[%clk 0:00:02.1]} 82. Qd8+ {[%clk 0:00:14.2]} 82... Qf8 {[%clk
0:00:02]} 83. Qd5+ {[%clk 0:00:14.6]} 1-0

[Event "*** SCC Grand Prix: Titled Tuesday Blitz"]
[Site "Chess.com"]
[Date "2020.08.04"]
[Round "2"]
[White "Batsai"]
[Black "1977Ivan"]
[Result "1-0"]
[WhiteElo "2372"]
[BlackElo "2679"]
[TimeControl "180+1"]
[EndTime "14:05:08 PDT"]
[Termination "Batsai won by checkmate"]

1. e4 {[%clk 0:02:56.8]} 1... c5 {[%clk 0:02:59.2]} 2. Nf3 {[%clk 0:02:55]} 2...
e6 {[%clk 0:02:59.5]} 3. d4 {[%clk 0:02:55.5]} 3... cxd4 {[%clk 0:03:00.1]} 4.
Nxd4 {[%clk 0:02:56.4]} 4... Nc6 {[%clk 0:03:00]} 5. Nc3 {[%clk 0:02:53.9]} 5...
Qc7 {[%clk 0:03:00.2]} 6. Nxc6 {[%clk 0:02:47.9]} 6... dxc6 {[%clk 0:02:58.5]}
7. Bd3 {[%clk 0:02:47.1]} 7... e5 {[%clk 0:02:57.6]} 8. O-O {[%clk 0:02:45.9]}
8... Nf6 {[%clk 0:02:57.5]} 9. Bg5 {[%clk 0:02:19]} 9... Be7 {[%clk 0:02:52.4]}
10. a4 {[%clk 0:02:10.4]} 10... O-O {[%clk 0:02:48.8]} 11. Bc4 {[%clk
0:02:08.4]} 11... Ng4 {[%clk 0:02:44.6]} 12. Bxe7 {[%clk 0:01:54.9]} 12... Qxe7
{[%clk 0:02:45.5]} 13. h3 {[%clk 0:01:52.9]} 13... Nf6 {[%clk 0:02:44.8]} 14.
Qe2 {[%clk 0:01:45.9]} 14... a5 {[%clk 0:02:44]} 15. Qe3 {[%clk 0:01:41.9]}
15... Qb4 {[%clk 0:02:37.5]} 16. Bb3 {[%clk 0:01:25.9]} 16... Nd7 {[%clk
0:02:36]} 17. Na2 {[%clk 0:01:07.7]} 17... Qc5 {[%clk 0:02:34.6]} 18. Rad1
{[%clk 0:00:50.6]} 18... Qxe3 {[%clk 0:02:02.4]} 19. fxe3 {[%clk 0:00:51.5]}
19... Nf6 {[%clk 0:02:01.3]} 20. Nc3 {[%clk 0:00:42.8]} 20... h6 {[%clk
0:02:01.3]} 21. Rd6 {[%clk 0:00:19.4]} 21... Re8 {[%clk 0:01:59.9]} 22. g4
{[%clk 0:00:17.9]} 22... Kf8 {[%clk 0:01:58.2]} 23. Kg2 {[%clk 0:00:16.4]} 23...
Ke7 {[%clk 0:01:55.4]} 24. Rd3 {[%clk 0:00:13.5]} 24... Bd7 {[%clk 0:01:48]} 25.
Kf3 {[%clk 0:00:12.3]} 25... Rad8 {[%clk 0:01:43.3]} 26. Ne2 {[%clk 0:00:12]}
26... Be6 {[%clk 0:01:32.3]} 27. Bxe6 {[%clk 0:00:10.4]} 27... Kxe6 {[%clk
0:01:32.1]} 28. Ng3 {[%clk 0:00:06.6]} 28... g6 {[%clk 0:01:31.4]} 29. Ke2
{[%clk 0:00:05.8]} 29... Rxd3 {[%clk 0:01:22]} 30. cxd3 {[%clk 0:00:06.7]} 30...
Nd7 {[%clk 0:01:21.4]} 31. d4 {[%clk 0:00:06.1]} 31... f6 {[%clk 0:01:20.1]} 32.
b3 {[%clk 0:00:06]} 32... Rd8 {[%clk 0:01:19.5]} 33. h4 {[%clk 0:00:05.4]} 33...
Rg8 {[%clk 0:01:05]} 34. Kd3 {[%clk 0:00:03.6]} 34... Nb6 {[%clk 0:00:58.7]} 35.
Rc1 {[%clk 0:00:02.5]} 35... Nd7 {[%clk 0:00:46.6]} 36. Rc4 {[%clk 0:00:02.4]}
36... Kd6 {[%clk 0:00:40.9]} 37. Ke2 {[%clk 0:00:02.4]} 37... c5 {[%clk
0:00:23.6]} 38. Rc3 {[%clk 0:00:02.2]} 38... cxd4 {[%clk 0:00:22.5]} 39. exd4
{[%clk 0:00:03.1]} 39... exd4 {[%clk 0:00:23]} 40. Rc4 {[%clk 0:00:03.4]} 40...
d3+ {[%clk 0:00:21.7]} 41. Ke3 {[%clk 0:00:02.9]} 41... Ne5 {[%clk 0:00:21]} 42.
Rd4+ {[%clk 0:00:02.8]} 42... Ke6 {[%clk 0:00:20.7]} 43. h5 {[%clk 0:00:02.3]}
43... gxh5 {[%clk 0:00:19.7]} 44. Nf5 {[%clk 0:00:02.5]} 44... Rxg4 {[%clk
0:00:18.4]} 45. Rd6+ {[%clk 0:00:02.3]} 45... Kf7 {[%clk 0:00:18.2]} 46. Nxh6+
{[%clk 0:00:02.5]} 46... Ke7 {[%clk 0:00:18.1]} 47. Nf5+ {[%clk 0:00:02.3]}
47... Kf7 {[%clk 0:00:17.2]} 48. Nh6+ {[%clk 0:00:01.8]} 48... Ke7 {[%clk
0:00:17.2]} 49. Nf5+ {[%clk 0:00:02.2]} 49... Ke8 {[%clk 0:00:16.9]} 50. Rxf6
{[%clk 0:00:02.3]} 50... Rg6 {[%clk 0:00:12.8]} 51. Rxg6 {[%clk 0:00:01.9]}
51... Nxg6 {[%clk 0:00:12.6]} 52. Kxd3 {[%clk 0:00:02.8]} 52... h4 {[%clk
0:00:12.1]} 53. Ke3 {[%clk 0:00:03.7]} 53... h3 {[%clk 0:00:11.9]} 54. Kf3
{[%clk 0:00:03.9]} 54... Kf7 {[%clk 0:00:10.8]} 55. Kg3 {[%clk 0:00:03.6]} 55...
Ke6 {[%clk 0:00:10.7]} 56. Kxh3 {[%clk 0:00:03.1]} 56... Ke5 {[%clk 0:00:10.9]}
57. Kg3 {[%clk 0:00:03.3]} 57... Nf4 {[%clk 0:00:10.3]} 58. Kf3 {[%clk
0:00:03.1]} 58... Nd3 {[%clk 0:00:10.2]} 59. Ke3 {[%clk 0:00:03]} 59... Nc5
{[%clk 0:00:10.4]} 60. Nd4 {[%clk 0:00:02.7]} 60... Nxe4 {[%clk 0:00:10.1]} 61.
Ne2 {[%clk 0:00:02.1]} 61... Nc5 {[%clk 0:00:09.1]} 62. Kd2 {[%clk 0:00:01.6]}
62... Nxb3+ {[%clk 0:00:07.8]} 63. Kc3 {[%clk 0:00:02.5]} 63... Nc5 {[%clk
0:00:07.8]} 64. Kc4 {[%clk 0:00:03.1]} 64... b6 {[%clk 0:00:05.3]} 65. Kb5
{[%clk 0:00:02.9]} 65... Nd7 {[%clk 0:00:05.2]} 66. Nc3 {[%clk 0:00:02.7]} 66...
Kd6 {[%clk 0:00:04.9]} 67. Ne4+ {[%clk 0:00:02.2]} 67... Kc7 {[%clk 0:00:04.9]}
68. Nd2 {[%clk 0:00:03.1]} 68... Kb7 {[%clk 0:00:05]} 69. Nc4 {[%clk 0:00:03.2]}
69... Kc7 {[%clk 0:00:04.7]} 70. Ne5 {[%clk 0:00:02.8]} 70... Nc5 {[%clk
0:00:05.6]} 71. Nc4 {[%clk 0:00:02.9]} 71... Nd7 {[%clk 0:00:05.7]} 72. Ne3
{[%clk 0:00:02.1]} 72... Ne5 {[%clk 0:00:05.5]} 73. Nd5+ {[%clk 0:00:02.3]}
73... Kb7 {[%clk 0:00:04.9]} 74. Nxb6 {[%clk 0:00:03.2]} 74... Nc6 {[%clk
0:00:05.2]} 75. Nc4 {[%clk 0:00:02.9]} 75... Nd4+ {[%clk 0:00:04.7]} 76. Kc5
{[%clk 0:00:03]} 76... Nb3+ {[%clk 0:00:04.8]} 77. Kb5 {[%clk 0:00:03.9]} 77...
Nd4+ {[%clk 0:00:04.9]} 78. Kc5 {[%clk 0:00:03.8]} 78... Ka6 {[%clk 0:00:04.9]}
79. Kxd4 {[%clk 0:00:03.4]} 79... Ka7 {[%clk 0:00:04.7]} 80. Kc5 {[%clk
0:00:04.3]} 80... Kb7 {[%clk 0:00:05.3]} 81. Kb5 {[%clk 0:00:04.1]} 81... Ka7
{[%clk 0:00:06.2]} 82. Kxa5 {[%clk 0:00:04.7]} 82... Kb7 {[%clk 0:00:07.1]} 83.
Kb5 {[%clk 0:00:05.6]} 83... Ka7 {[%clk 0:00:07.5]} 84. a5 {[%clk 0:00:06.5]}
84... Kb7 {[%clk 0:00:08]} 85. a6+ {[%clk 0:00:07.4]} 85... Ka7 {[%clk
0:00:08.6]} 86. Ka5 {[%clk 0:00:07.7]} 86... Ka8 {[%clk 0:00:09.5]} 87. Kb6
{[%clk 0:00:08]} 87... Kb8 {[%clk 0:00:10.4]} 88. Na5 {[%clk 0:00:08.2]} 88...
Ka8 {[%clk 0:00:11.3]} 89. Nb7 {[%clk 0:00:07.7]} 89... Kb8 {[%clk 0:00:12.2]}
90. Nc5 {[%clk 0:00:07]} 90... Ka8 {[%clk 0:00:13.1]} 91. Ne6 {[%clk 0:00:07.2]}
91... Kb8 {[%clk 0:00:13.9]} 92. a7+ {[%clk 0:00:07.6]} 92... Ka8 {[%clk
0:00:14.2]} 93. Nc7# {[%clk 0:00:07.6]} 1-0